[Event "Titled Tuesday Blitz November 15 Late 2022"]
[White "Torres Dominguez, David"]
[Black "Reprintsev, Alexander"]
[WhiteFideId "2220857"]
[BlackFideId "14100541"]
[WhiteElo "2037"]
[BlackElo "2230"]
[Result "0-1"]
[Round "11"]
[TimeControl "180+1"]
[Date "2022.11.16"]
[WhiteClock "0:00:02"]
[BlackClock "0:01:41"]

1. d4 {[%clk 0:02:55]}  d5 {[%clk 0:02:59]} 2. c4 {[%clk 0:02:54]}  e5 {[%clk 0:02:57]} 3. dxe5 {[%clk 0:02:52]}  d4 {[%clk 0:02:58]} 4. Nf3 {[%clk 0:02:49]}  Nc6 {[%clk 0:02:58]} 5. Nbd2 {[%clk 0:02:45]}  a5 {[%clk 0:02:57]} 6. g3 {[%clk 0:02:43]}  Bf5 {[%clk 0:02:44]} 7. a3 {[%clk 0:02:37]}  Qd7 {[%clk 0:02:43]} 8. Bg2 {[%clk 0:02:35]}  Bh3 {[%clk 0:02:43]} 9. O-O {[%clk 0:02:34]}  Bxg2 {[%clk 0:02:42]} 10. Kxg2 {[%clk 0:02:33]}  h5 {[%clk 0:02:43]} 11. h4 {[%clk 0:02:29]}  Nh6 {[%clk 0:02:43]} 12. Ne4 {[%clk 0:02:25]}  O-O-O {[%clk 0:02:42]} 13. b4 {[%clk 0:02:17]}  Ng4 {[%clk 0:02:41]} 14. Bf4 {[%clk 0:02:04]}  Qf5 {[%clk 0:02:36]} 15. Neg5 {[%clk 0:01:53]}  Be7 {[%clk 0:02:31]} 16. b5 {[%clk 0:01:41]}  Bxg5 {[%clk 0:02:31]} 17. Bxg5 {[%clk 0:01:35]}  Ncxe5 {[%clk 0:02:27]} 18. Bxd8 {[%clk 0:01:27]}  Rxd8 {[%clk 0:02:26]} 19. Nxe5 {[%clk 0:01:15]}  Qxe5 {[%clk 0:02:16]} 20. Qd3 {[%clk 0:01:12]}  g5 {[%clk 0:02:15]} 21. hxg5 {[%clk 0:01:09]}  Qxg5 {[%clk 0:02:14]} 22. f4 {[%clk 0:01:06]}  Qe7 {[%clk 0:02:12]} 23. Qf5+ {[%clk 0:00:59]}  Kb8 {[%clk 0:02:11]} 24. Rf3 {[%clk 0:00:53]}  Ne3+ {[%clk 0:02:10]} 25. Rxe3 {[%clk 0:00:50]}  Qxe3 {[%clk 0:02:11]} 26. Qxh5 {[%clk 0:00:43]}  d3 {[%clk 0:02:11]} 27. Rd1 {[%clk 0:00:37]}  Qe4+ {[%clk 0:02:06]} 28. Qf3 {[%clk 0:00:35]}  Qxc4 {[%clk 0:02:05]} 29. exd3 {[%clk 0:00:33]}  Qxb5 {[%clk 0:02:05]} 30. d4 {[%clk 0:00:31]}  c6 {[%clk 0:02:03]} 31. Qe4 {[%clk 0:00:28]}  Ka7 {[%clk 0:01:48]} 32. Qe5 {[%clk 0:00:26]}  Rd5 {[%clk 0:01:46]} 33. Qc7 {[%clk 0:00:22]}  Qe2+ {[%clk 0:01:44]} 34. Kh3 {[%clk 0:00:18]}  Qxd1 {[%clk 0:01:45]} 35. Qxf7 {[%clk 0:00:07]}  Rh5+ {[%clk 0:01:41]} 36. Kg2 {[%clk 0:00:02]}  Qe2+ {[%clk 0:01:41]} 0-1


[Site "https://www.chess.com"]

[Event "Titled Tuesday Blitz November 15 Late 2022"]
[White "Vargas, Mauricio"]
[Black "chess50years"]
[WhiteFideId "4404572"]
[WhiteElo "2025"]
[BlackElo "2140"]
[Result "0-1"]
[Round "11"]
[TimeControl "180+1"]
[Date "2022.11.16"]
[WhiteClock "0:01:01"]
[BlackClock "0:01:27"]

1. e4 {[%clk 0:02:53]}  c6 {[%clk 0:02:59]} 2. f4 {[%clk 0:02:52]}  d5 {[%clk 0:02:59]} 3. Nc3 {[%clk 0:02:53]}  dxe4 {[%clk 0:02:56]} 4. Nxe4 {[%clk 0:02:54]}  Nd7 {[%clk 0:02:53]} 5. Qe2 {[%clk 0:02:52]}  e6 {[%clk 0:02:48]} 6. Nf3 {[%clk 0:02:49]}  Ngf6 {[%clk 0:02:48]} 7. g3 {[%clk 0:02:47]}  Nxe4 {[%clk 0:02:46]} 8. Qxe4 {[%clk 0:02:47]}  Nf6 {[%clk 0:02:45]} 9. Qe2 {[%clk 0:02:43]}  Bc5 {[%clk 0:02:39]} 10. c3 {[%clk 0:02:39]}  O-O {[%clk 0:02:37]} 11. d4 {[%clk 0:02:38]}  Bb6 {[%clk 0:02:37]} 12. Bg2 {[%clk 0:02:38]}  c5 {[%clk 0:02:37]} 13. Be3 {[%clk 0:02:32]}  Qc7 {[%clk 0:02:17]} 14. Qf2 {[%clk 0:02:25]}  Ng4 {[%clk 0:02:16]} 15. Qg1 {[%clk 0:02:24]}  Nxe3 {[%clk 0:02:15]} 16. Qxe3 {[%clk 0:02:24]}  cxd4 {[%clk 0:02:12]} 17. Nxd4 {[%clk 0:02:22]}  Rd8 {[%clk 0:01:56]} 18. Rd1 {[%clk 0:02:12]}  Bd7 {[%clk 0:01:54]} 19. O-O {[%clk 0:02:11]}  Bc6 {[%clk 0:01:53]} 20. a4 {[%clk 0:01:52]}  a6 {[%clk 0:01:48]} 21. b3 {[%clk 0:01:33]}  h6 {[%clk 0:01:43]} 22. Qe2 {[%clk 0:01:28]}  Bxg2 {[%clk 0:01:35]} 23. Kxg2 {[%clk 0:01:28]}  Qxc3 {[%clk 0:01:31]} 24. Nxe6 {[%clk 0:01:20]}  Qc6+ {[%clk 0:01:30]} 25. Qf3 {[%clk 0:01:07]}  Qxf3+ {[%clk 0:01:28]} 26. Kxf3 {[%clk 0:01:03]}  fxe6 {[%clk 0:01:28]} 27. Rd6 {[%clk 0:01:01]}  Rxd6 {[%clk 0:01:27]} 0-1


[Site "https://www.chess.com"]

[Event "Titled Tuesday Blitz November 15 Late 2022"]
[White "Winkels, Marcel"]
[Black "Paiva, Henrique M A Albergaria"]
[WhiteFideId "1003887"]
[BlackFideId "1920995"]
[WhiteElo "1900"]
[BlackElo "1953"]
[Result "1-0"]
[Round "11"]
[TimeControl "180+1"]
[Date "2022.11.16"]
[WhiteClock "0:00:05"]
[BlackClock "0:00:07"]

1. e4 {[%clk 0:03:00]}  c5 {[%clk 0:02:56]} 2. d4 {[%clk 0:02:59]}  cxd4 {[%clk 0:02:56]} 3. c3 {[%clk 0:03:00]}  dxc3 {[%clk 0:02:56]} 4. Nxc3 {[%clk 0:03:00]}  Nc6 {[%clk 0:02:56]} 5. Nf3 {[%clk 0:03:00]}  d6 {[%clk 0:02:56]} 6. Bc4 {[%clk 0:03:00]}  a6 {[%clk 0:02:56]} 7. a4 {[%clk 0:02:57]}  Nf6 {[%clk 0:02:55]} 8. Qe2 {[%clk 0:02:54]}  Bg4 {[%clk 0:02:55]} 9. Be3 {[%clk 0:02:51]}  e6 {[%clk 0:02:55]} 10. h3 {[%clk 0:02:51]}  Bxf3 {[%clk 0:02:53]} 11. Qxf3 {[%clk 0:02:50]}  Rc8 {[%clk 0:02:50]} 12. Ba2 {[%clk 0:02:48]}  Nb4 {[%clk 0:02:49]} 13. Bb3 {[%clk 0:02:29]}  Nd3+ {[%clk 0:02:48]} 14. Ke2 {[%clk 0:02:28]}  Nxb2 {[%clk 0:02:39]} 15. Rac1 {[%clk 0:02:14]}  Nc4 {[%clk 0:02:38]} 16. Rhd1 {[%clk 0:02:07]}  Nxe3 {[%clk 0:02:37]} 17. Qxe3 {[%clk 0:02:06]}  Qa5 {[%clk 0:02:30]} 18. g4 {[%clk 0:02:00]}  Be7 {[%clk 0:02:27]} 19. g5 {[%clk 0:01:59]}  Nd7 {[%clk 0:02:27]} 20. h4 {[%clk 0:01:59]}  Ne5 {[%clk 0:02:17]} 21. Qd4 {[%clk 0:01:53]}  Qc5 {[%clk 0:02:08]} 22. f4 {[%clk 0:01:39]}  Qxd4 {[%clk 0:02:08]} 23. Rxd4 {[%clk 0:01:38]}  Nc6 {[%clk 0:02:09]} 24. Rdd1 {[%clk 0:01:31]}  O-O {[%clk 0:02:08]} 25. f5 {[%clk 0:01:29]}  Na5 {[%clk 0:01:59]} 26. Ba2 {[%clk 0:01:23]}  Nc4 {[%clk 0:01:56]} 27. a5 {[%clk 0:01:06]}  Rc5 {[%clk 0:01:55]} 28. Rd4 {[%clk 0:01:00]}  Rfc8 {[%clk 0:01:32]} 29. Na4 {[%clk 0:00:52]}  Ne5 {[%clk 0:01:25]} 30. Nxc5 {[%clk 0:00:48]}  dxc5 {[%clk 0:01:25]} 31. Rdd1 {[%clk 0:00:46]}  exf5 {[%clk 0:01:24]} 32. exf5 {[%clk 0:00:45]}  h6 {[%clk 0:01:08]} 33. g6 {[%clk 0:00:43]}  Kf8 {[%clk 0:01:06]} 34. Rd5 {[%clk 0:00:40]}  Nc6 {[%clk 0:00:54]} 35. gxf7 {[%clk 0:00:36]}  Nb4 {[%clk 0:00:52]} 36. Rd2 {[%clk 0:00:34]}  Bxh4 {[%clk 0:00:52]} 37. Rb2 {[%clk 0:00:28]}  Nxa2 {[%clk 0:00:36]} 38. Rxa2 {[%clk 0:00:26]}  Kxf7 {[%clk 0:00:36]} 39. Rb2 {[%clk 0:00:25]}  Rc7 {[%clk 0:00:35]} 40. Rb6 {[%clk 0:00:22]}  Bf6 {[%clk 0:00:28]} 41. Kd3 {[%clk 0:00:21]}  Bd4 {[%clk 0:00:23]} 42. Kc4 {[%clk 0:00:20]}  Re7 {[%clk 0:00:19]} 43. Rd1 {[%clk 0:00:19]}  Bf2 {[%clk 0:00:18]} 44. Rd5 {[%clk 0:00:15]}  Re4+ {[%clk 0:00:17]} 45. Kd3 {[%clk 0:00:14]}  Ra4 {[%clk 0:00:15]} 46. Rxb7+ {[%clk 0:00:13]}  Kf6 {[%clk 0:00:15]} 47. Rb6+ {[%clk 0:00:13]}  Kf7 {[%clk 0:00:15]} 48. Rd7+ {[%clk 0:00:11]}  Ke8 {[%clk 0:00:16]} 49. Rxg7 {[%clk 0:00:10]}  c4+ {[%clk 0:00:16]} 50. Kc2 {[%clk 0:00:09]}  Bxb6 {[%clk 0:00:17]} 51. axb6 {[%clk 0:00:08]}  Kd8 {[%clk 0:00:14]} 52. b7 {[%clk 0:00:08]}  Rb4 {[%clk 0:00:14]} 53. Kc3 {[%clk 0:00:08]}  a5 {[%clk 0:00:14]} 54. f6 {[%clk 0:00:08]}  Ke8 {[%clk 0:00:10]} 55. f7+ {[%clk 0:00:07]}  Kf8 {[%clk 0:00:09]} 56. Rg8+ {[%clk 0:00:08]}  Kxf7 {[%clk 0:00:10]} 57. b8=Q {[%clk 0:00:08]}  Rxb8 {[%clk 0:00:10]} 58. Rxb8 {[%clk 0:00:08]}  Kf6 {[%clk 0:00:10]} 59. Kxc4 {[%clk 0:00:08]}  Kg5 {[%clk 0:00:11]} 60. Rb5+ {[%clk 0:00:08]}  Kg4 {[%clk 0:00:11]} 61. Rxa5 {[%clk 0:00:09]}  h5 {[%clk 0:00:12]} 62. Kd3 {[%clk 0:00:08]}  Kg3 {[%clk 0:00:12]} 63. Ke2 {[%clk 0:00:08]}  h4 {[%clk 0:00:12]} 64. Kf1 {[%clk 0:00:07]}  Kh2 {[%clk 0:00:13]} 65. Ra2+ {[%clk 0:00:05]}  Kh1 {[%clk 0:00:11]} 66. Kf2 {[%clk 0:00:04]}  h3 {[%clk 0:00:11]} 67. Kg3 {[%clk 0:00:04]}  h2 {[%clk 0:00:08]} 68. Rxh2+ {[%clk 0:00:04]}  Kg1 {[%clk 0:00:07]} 69. Rh4 {[%clk 0:00:05]}  Kf1 {[%clk 0:00:07]} 70. Rh2 {[%clk 0:00:06]}  Kg1 {[%clk 0:00:07]} 71. Rd2 {[%clk 0:00:05]} 1-0


[Site "https://www.chess.com"]

[Event "Titled Tuesday Blitz November 15 Late 2022"]
[White "Young, Ryan"]
[Black "Harish, Neeraj"]
[WhiteFideId "2049945"]
[BlackFideId "30958130"]
[WhiteElo "2278"]
[BlackElo "1815"]
[Result "0-1"]
[Round "11"]
[TimeControl "180+1"]
[Date "2022.11.16"]
[WhiteClock "0:00:03"]
[BlackClock "0:00:36"]

1. e4 {[%clk 0:03:00]}  c5 {[%clk 0:02:59]} 2. g3 {[%clk 0:02:55]}  g6 {[%clk 0:02:57]} 3. Bg2 {[%clk 0:02:54]}  Bg7 {[%clk 0:02:57]} 4. Ne2 {[%clk 0:02:54]}  Nc6 {[%clk 0:02:53]} 5. O-O {[%clk 0:02:53]}  e5 {[%clk 0:02:54]} 6. c3 {[%clk 0:02:49]}  Nge7 {[%clk 0:02:52]} 7. d3 {[%clk 0:02:31]}  O-O {[%clk 0:02:51]} 8. Be3 {[%clk 0:02:30]}  d6 {[%clk 0:02:48]} 9. Nd2 {[%clk 0:02:31]}  f5 {[%clk 0:02:42]} 10. f4 {[%clk 0:02:30]}  fxe4 {[%clk 0:02:36]} 11. Nxe4 {[%clk 0:02:27]}  exf4 {[%clk 0:02:33]} 12. Bxf4 {[%clk 0:02:20]}  Be5 {[%clk 0:02:19]} 13. Bxe5 {[%clk 0:02:15]}  Nxe5 {[%clk 0:02:19]} 14. d4 {[%clk 0:02:06]}  cxd4 {[%clk 0:02:10]} 15. cxd4 {[%clk 0:02:06]}  Nc4 {[%clk 0:01:59]} 16. Qb3 {[%clk 0:01:57]}  d5 {[%clk 0:01:58]} 17. Nf6+ {[%clk 0:01:22]}  Kg7 {[%clk 0:01:57]} 18. Nxd5 {[%clk 0:01:20]}  Rxf1+ {[%clk 0:01:52]} 19. Bxf1 {[%clk 0:01:17]}  Qxd5 {[%clk 0:01:49]} 20. Qc3 {[%clk 0:00:54]}  Nd6 {[%clk 0:01:29]} 21. Nf4 {[%clk 0:00:54]}  Qc6 {[%clk 0:01:28]} 22. Qb3 {[%clk 0:00:47]}  Bf5 {[%clk 0:01:22]} 23. Re1 {[%clk 0:00:46]}  Re8 {[%clk 0:01:19]} 24. Bg2 {[%clk 0:00:45]}  Qb6 {[%clk 0:01:15]} 25. Qc3 {[%clk 0:00:39]}  Nc6 {[%clk 0:01:10]} 26. Rxe8 {[%clk 0:00:36]}  Nxe8 {[%clk 0:01:10]} 27. Bxc6 {[%clk 0:00:25]}  Qxc6 {[%clk 0:01:08]} 28. Qa3 {[%clk 0:00:19]}  Nd6 {[%clk 0:00:58]} 29. d5 {[%clk 0:00:18]}  Qc1+ {[%clk 0:00:58]} 30. Kg2 {[%clk 0:00:16]}  Qd2+ {[%clk 0:00:56]} 31. Kg1 {[%clk 0:00:16]}  Qd1+ {[%clk 0:00:51]} 32. Kg2 {[%clk 0:00:13]}  Be4+ {[%clk 0:00:51]} 33. Kf2 {[%clk 0:00:09]}  Qd4+ {[%clk 0:00:42]} 34. Kf1 {[%clk 0:00:08]}  Nf5 {[%clk 0:00:41]} 35. d6 {[%clk 0:00:05]}  Qd1+ {[%clk 0:00:39]} 36. Kf2 {[%clk 0:00:05]}  Qd2+ {[%clk 0:00:38]} 37. Kf1 {[%clk 0:00:05]}  Ne3+ {[%clk 0:00:35]} 38. Kg1 {[%clk 0:00:03]}  Qe1# {[%clk 0:00:36]} 0-1


[Site "https://www.chess.com"]

[Event "Titled Tuesday Blitz November 15 Late 2022"]
[White "vjecspec"]
[Black "Mr_Penings"]
[WhiteElo "2548"]
[BlackElo "2682"]
[Result "1-0"]
[Round "11"]
[TimeControl "180+1"]
[Date "2022.11.15"]
[WhiteClock "0:00:17"]
[BlackClock "0:00:01"]

1. e4 {[%clk 0:03:00]}  c5 {[%clk 0:02:59]} 2. Nf3 {[%clk 0:03:01]}  e6 {[%clk 0:02:59]} 3. c4 {[%clk 0:03:00]}  a6 {[%clk 0:02:59]} 4. d4 {[%clk 0:03:00]}  cxd4 {[%clk 0:02:59]} 5. Nxd4 {[%clk 0:03:01]}  Nf6 {[%clk 0:02:58]} 6. Nc3 {[%clk 0:03:01]}  Qc7 {[%clk 0:02:58]} 7. a3 {[%clk 0:03:01]}  b6 {[%clk 0:02:58]} 8. Be2 {[%clk 0:03:00]}  Bb7 {[%clk 0:02:58]} 9. f3 {[%clk 0:03:01]}  d6 {[%clk 0:02:57]} 10. Be3 {[%clk 0:03:01]}  Nbd7 {[%clk 0:02:57]} 11. O-O {[%clk 0:03:01]}  Be7 {[%clk 0:02:56]} 12. b4 {[%clk 0:03:01]}  Rc8 {[%clk 0:02:56]} 13. Rc1 {[%clk 0:03:01]}  Qb8 {[%clk 0:02:55]} 14. Qd2 {[%clk 0:03:01]}  h5 {[%clk 0:02:51]} 15. Nb3 {[%clk 0:02:49]}  h4 {[%clk 0:02:46]} 16. Na4 {[%clk 0:02:36]}  Bd8 {[%clk 0:02:46]} 17. c5 {[%clk 0:02:32]}  dxc5 {[%clk 0:02:36]} 18. bxc5 {[%clk 0:02:32]}  Bc6 {[%clk 0:02:11]} 19. Nxb6 {[%clk 0:02:27]}  Nxb6 {[%clk 0:01:52]} 20. cxb6 {[%clk 0:02:24]}  Bxb6 {[%clk 0:01:51]} 21. Nd4 {[%clk 0:02:18]}  Bb7 {[%clk 0:01:37]} 22. Rxc8+ {[%clk 0:02:13]}  Qxc8 {[%clk 0:01:27]} 23. Rb1 {[%clk 0:02:05]}  Bc7 {[%clk 0:01:05]} 24. Qb4 {[%clk 0:01:57]}  Ba8 {[%clk 0:01:01]} 25. Qa4+ {[%clk 0:01:51]}  Kf8 {[%clk 0:00:59]} 26. Qxa6 {[%clk 0:01:49]}  Qxa6 {[%clk 0:00:55]} 27. Bxa6 {[%clk 0:01:49]}  Rh5 {[%clk 0:00:56]} 28. Rb5 {[%clk 0:01:41]}  Rxb5 {[%clk 0:00:30]} 29. Bxb5 {[%clk 0:01:34]}  Bb7 {[%clk 0:00:25]} 30. Nc6 {[%clk 0:01:25]}  Nd7 {[%clk 0:00:19]} 31. Nd8 {[%clk 0:01:03]}  Ba8 {[%clk 0:00:17]} 32. Bxd7 {[%clk 0:01:03]}  Bxd8 {[%clk 0:00:17]} 33. Bc5+ {[%clk 0:01:02]}  Kg8 {[%clk 0:00:15]} 34. a4 {[%clk 0:00:25]}  Ba5 {[%clk 0:00:14]} 35. Kf2 {[%clk 0:00:24]}  g5 {[%clk 0:00:12]} 36. Be3 {[%clk 0:00:19]}  Bd8 {[%clk 0:00:12]} 37. Bd2 {[%clk 0:00:19]}  Kg7 {[%clk 0:00:11]} 38. a5 {[%clk 0:00:19]}  Kf6 {[%clk 0:00:11]} 39. a6 {[%clk 0:00:19]}  Bb6+ {[%clk 0:00:11]} 40. Be3 {[%clk 0:00:18]}  Bc7 {[%clk 0:00:12]} 41. Bc8 {[%clk 0:00:18]}  Ke7 {[%clk 0:00:06]} 42. Bxg5+ {[%clk 0:00:17]}  f6 {[%clk 0:00:04]} 43. Bxh4 {[%clk 0:00:17]}  Bc6 {[%clk 0:00:05]} 44. Bb7 {[%clk 0:00:18]}  Bb5 {[%clk 0:00:03]} 45. Bg3 {[%clk 0:00:18]}  Bb6+ {[%clk 0:00:03]} 46. Ke1 {[%clk 0:00:18]}  Ba5+ {[%clk 0:00:02]} 47. Kd1 {[%clk 0:00:18]}  Bb6 {[%clk 0:00:02]} 48. h4 {[%clk 0:00:18]}  Kf7 {[%clk 0:00:02]} 49. Bf4 {[%clk 0:00:18]}  Bf1 {[%clk 0:00:02]} 50. g4 {[%clk 0:00:17]}  Bb5 {[%clk 0:00:01]} 51. Kd2 {[%clk 0:00:17]} 1-0